bitfinex/quotes_ETHUSD_20250422
["timestamp","ask_amount","ask_price","bid_price","bid_amount"]
[1745341698243,0.55,1698.4,1697.3,7.0084]
[1745341698481,6.255,1698.3,1697.3,7.0084]
[1745341698780,5.88879513,1698.2,1697.4,8.89113097]
[1745341698979,5.88893739,1698.1,1697.4,8.89113097]
[1745341699143,5.88962454,1698.0,1697.4,3.0]
[1745341699348,5.88907123,1698.1,1697.4,3.0]
[1745341699550,5.88872644,1698.2,1697.5,6.24986671]
[1745341699779,6.255,1698.3,1697.6,3.0]
[1745341700084,5.88825749,1698.3,1697.8,0.7534]
[1745341700250,5.88836155,1698.3,1697.8,0.7534]
[1745341700695,11.77690749,1698.3,1697.8,0.7534]
[1745341700979,5.88735485,1698.6,1697.9,3.05889174]
[1745341701187,5.88735485,1698.6,1698.0,0.36477293]
[1745341701188,2.61337549,1698.6,1698.0,0.36477293]
[1745341701359,6.255,1698.8,1698.3,3.0]
[1745341701560,0.3,1699.2,1698.3,0.05887141]
[1745341701760,6.254,1699.3,1698.3,0.05887141]
[1745341701761,12.13899584,1699.3,1698.6,0.7534]
[1745341702071,6.254,1699.3,1698.8,3.0]
[1745341702396,5.88385045,1699.6,1699.0,3.0]
[1745341702571,5.88385045,1699.6,1698.7,3.0]
[1745341702572,5.88498269,1699.3,1698.7,3.0]
[1745341702775,7.09759591,1699.9,1698.7,3.0]
[1745341702776,5.88539232,1699.2,1698.7,3.0]
[1745341702965,5.88408461,1699.5,1698.6,7.0074]
[1745341702966,5.88600133,1699.0,1698.6,0.7534]
[1745341703291,5.88566292,1699.1,1698.6,0.7534]
[1745341703495,5.88524167,1699.2,1698.7,0.05886544]
[1745341703791,5.88442979,1699.4,1698.6,0.8122626]
[1745341703968,5.88592412,1699.0,1698.6,0.7534]
[1745341704302,5.8852615,1699.2,1698.6,0.7534]
[1745341704990,5.8855946,1699.1,1698.6,1.4174775]
[1745341705285,5.88656407,1698.8,1698.6,0.7534]
[1745341705503,6.252,1699.1,1698.6,0.7534]
[1745341705721,6.252,1699.1,1698.3,0.7534]
[1745341705897,6.252,1699.1,1698.5,3.0]
[1745341705898,12.13772456,1699.1,1698.5,3.0]
[1745341706096,5.88622947,1698.9,1698.3,3.7534]
[1745341706269,12.13771394,1699.1,1698.4,0.43420554]
[1745341706611,5.88582454,1699.0,1698.4,0.37534]
[1745341707173,5.88654243,1698.8,1698.4,0.37534]
[1745341707369,5.88654243,1698.8,1698.3,3.7534]
[1745341707370,5.88687673,1698.7,1698.3,0.7534]
[1745341707567,5.8858213,1699.0,1698.3,0.7534]
[1745341707783,5.88851569,1698.3,1697.9,6.8363]
[1745341707982,5.88851569,1698.3,1697.9,0.7863]
[1745341708181,7.351,1698.6,1697.9,6.67570887]
[1745341708472,14.64363164,1698.6,1698.0,0.66757089]
[1745341708693,13.23832816,1698.6,1698.0,0.66757089]
[1745341708869,6.251,1698.6,1698.3,3.0]
[1745341709069,5.88652026,1698.8,1698.3,3.0]
[1745341709277,6.251,1699.0,1698.6,3.0]
[1745341709504,5.88536374,1699.2,1698.6,3.05886338]
[1745341709809,5.88536374,1699.2,1698.6,4.55849316]
[1745341710006,12.13561837,1699.4,1698.6,4.55849316]
[1745341710175,12.13561837,1699.4,1698.8,3.7863]
[1745341710375,12.13561837,1699.4,1698.9,0.05885473]
[1745341710604,12.13561837,1699.4,1698.9,0.4433702]
[1745341710799,6.251,1699.4,1698.9,0.4433702]
[1745341711074,12.13546255,1699.4,1698.9,0.4433702]
[1745341711297,6.251,1699.4,1698.9,0.4433702]
[1745341711504,6.251,1699.4,1699.0,3.0]
[1745341711687,6.251,1699.4,1699.0,3.94933702]
[1745341712176,5.88341403,1699.7,1699.2,0.7863]
[1745341712377,5.88339118,1699.7,1699.2,0.7863]
[1745341712684,6.98323776,1699.8,1699.2,3.7863]
[1745341712885,25.70204721,1699.9,1699.3,0.05884058]
[1745341713093,25.70204721,1699.9,1699.3,1.63685462]
[1745341713312,0.4011625,1699.9,1699.4,3.0]
[1745341713509,0.4011625,1699.9,1699.3,4.57801404]
[1745341713717,0.4011625,1699.9,1699.3,10.46271989]
[1745341713905,5.8832804,1699.8,1699.3,4.57801404]
[1745341714078,6.51172469,1699.8,1699.3,4.57801404]
[1745341714284,6.51152543,1699.8,1699.3,4.57801404]
[1745341714484,6.51164424,1699.8,1699.3,3.0]
[1745341714689,5.88349896,1699.7,1699.3,3.0]
[1745341714918,6.28402993,1699.9,1699.3,3.05883852]
[1745341715220,0.4011625,1699.9,1699.3,3.0]
[1745341715418,5.8832954,1699.8,1699.3,3.0]
[1745341715595,6.67156854,1699.8,1699.3,3.0]
[1745341715923,0.4011625,1699.9,1699.3,3.05883853]
[1745341716122,0.4011625,1699.9,1699.3,3.0]
[1745341716645,11.76661827,1699.8,1699.3,3.0]
[1745341716826,5.88330552,1699.8,1699.3,3.0]
[1745341717124,5.8843181,1699.5,1699.3,3.0]
[1745341717289,6.47276056,1699.5,1699.2,0.7863]
[1745341717616,5.88532363,1699.2,1698.9,6.811]
[1745341717814,5.88581518,1699.0,1698.9,0.761]
[1745341718021,5.88643661,1698.9,1698.6,0.761]
[1745341718227,5.88664744,1698.8,1698.6,0.761]
[1745341718648,11.77200535,1699.0,1698.6,0.761]
[1745341718795,5.88616163,1698.9,1698.6,0.761]
[1745341718991,5.88661841,1698.8,1698.3,0.761]
[1745341719234,5.88661841,1698.8,1698.3,0.81987458]
[1745341719235,5.88666488,1698.8,1698.3,0.81987458]
[1745341719528,5.88769237,1698.5,1698.0,6.811]
[1745341719735,5.8882208,1698.4,1698.0,6.811]
[1745341719947,5.88720122,1698.6,1698.0,0.761]
[1745341720108,5.88826693,1698.3,1698.0,0.761]
[1745341720310,5.88805166,1698.4,1698.0,0.761]
[1745341720705,5.88877528,1698.2,1698.0,0.761]
[1745341720935,5.88826189,1698.3,1698.0,0.761]
[1745341720936,5.88841367,1698.3,1698.0,0.761]
[1745341721308,5.88786005,1698.5,1698.0,0.761]
[1745341721511,5.88775578,1698.5,1698.0,0.761]
[1745341721825,0.7689,1699.4,1698.3,0.7629]
[1745341722021,5.88527542,1699.2,1698.5,8.88737944]
[1745341722202,5.88527542,1699.2,1698.6,0.05886073]
[1745341722397,0.7689,1699.4,1698.5,3.0]
[1745341722630,5.88571763,1699.1,1698.6,0.0588653]
[1745341722940,5.88515339,1699.2,1698.5,3.97511414]
[1745341723242,5.88632165,1698.9,1698.5,3.97511414]
[1745341723402,5.88471144,1699.4,1698.5,3.97511414]
[1745341723601,5.88559285,1699.1,1698.6,0.05886384]
[1745341723802,5.88597243,1699.0,1698.6,0.46226164]
[1745341724168,5.88631602,1698.9,1698.5,3.97511414]
[1745341724318,6.266,1699.1,1698.6,0.058864]
[1745341724635,1.68843181,1699.5,1698.6,0.058864]
[1745341724636,5.88541431,1699.2,1698.6,0.7629]
[1745341724836,5.885634,1699.1,1698.6,0.7629]
[1745341725538,5.885634,1699.1,1698.6,0.82176045]
[1745341725904,11.7713944,1699.1,1698.6,0.82176045]
[1745341726106,5.88562574,1699.1,1698.6,0.7629]
[1745341726940,5.88562574,1699.1,1698.6,0.82176392]
[1745341728040,6.43442979,1699.4,1698.6,0.82176392]
[1745341728249,5.88665582,1698.8,1698.6,0.7629]
[1745341728416,5.88619964,1698.9,1698.6,0.7629]
[1745341728951,5.88677545,1698.8,1698.6,0.7629]
[1745341730351,12.41116614,1698.8,1698.6,0.7629]
[1745341730551,5.88685465,1698.7,1698.5,3.0]
[1745341730711,5.88685465,1698.7,1698.3,3.7629]
[1745341730911,6.52414898,1698.8,1698.3,0.7629]
[1745341731137,5.88752603,1698.6,1698.3,0.7629]
[1745341731343,5.8870575,1698.7,1698.3,0.7629]
[1745341732222,5.8866397,1698.8,1698.3,0.7629]
[1745341732941,5.88734866,1698.6,1698.3,0.7629]
[1745341734258,5.8873093,1698.6,1698.3,0.7629]
[1745341734628,11.77477252,1698.6,1698.3,0.7629]
[1745341734961,5.8873093,1698.6,1698.3,0.7629]
[1745341735157,5.88704295,1698.7,1698.3,0.7629]
[1745341735359,5.88735795,1698.6,1698.3,0.7629]
[1745341736659,5.88732644,1698.6,1698.3,0.7629]
[1745341737057,5.8877694,1698.5,1698.3,0.7629]
[1745341737354,5.88787116,1698.5,1698.3,0.7629]
[1745341737524,5.88789448,1698.4,1698.2,3.0]
[1745341737719,0.5887043,1698.7,1698.1,0.7836]
[1745341737938,5.88706144,1698.7,1698.1,0.7836]
[1745341738472,5.88747691,1698.6,1698.1,0.7836]
[1745341738615,5.88729809,1698.6,1698.1,0.7836]
[1745341738819,5.8866991,1698.8,1698.2,3.0]
[1745341739019,5.88704311,1698.7,1698.2,9.05]
[1745341739232,5.88704311,1698.7,1698.3,0.905]
[1745341739433,5.88704311,1698.7,1698.2,9.05]
[1745341740127,11.77416151,1698.7,1698.2,9.05]
[1745341740328,13.25190838,1699.0,1698.3,0.05887405]
[1745341740329,11.77280579,1698.9,1698.3,0.05887405]
[1745341740634,6.266,1699.0,1698.5,3.0]
[1745341740835,5.88523955,1699.2,1698.6,0.35886116]
[1745341741059,5.88582881,1699.0,1698.6,6.35]
[1745341741521,5.88562911,1699.1,1698.6,6.35]
[1745341742154,5.88525457,1699.2,1698.7,3.0]
[1745341742358,7.366,1699.4,1698.7,3.05886159]
[1745341742546,5.88525742,1699.2,1698.7,3.99974775]
[1745341742744,5.88525742,1699.2,1698.7,4.43964272]
[1745341742962,5.88489071,1699.3,1698.8,0.7836]
[1745341743163,19.13542027,1699.4,1698.8,0.84245615]
[1745341743465,19.13542027,1699.4,1698.8,0.7836]
[1745341743466,5.88529691,1699.2,1698.8,0.7836]
[1745341743648,7.366,1699.4,1698.8,1.3588945]
[1745341743850,1.1,1699.4,1698.8,1.3588945]
[1745341744051,5.88549912,1699.1,1698.8,1.30003811]
[1745341744251,5.88525291,1699.2,1698.8,1.30003811]
[1745341745255,11.77141211,1699.1,1698.8,0.7836]
[1745341745451,5.88596563,1699.0,1698.8,0.7836]
[1745341745787,5.88564109,1699.1,1698.8,0.7836]
[1745341746104,6.85443181,1699.5,1698.9,0.5894]
[1745341746400,6.28411078,1699.9,1699.2,3.0]
[1745341746564,6.28411078,1699.9,1699.3,0.35884115]
[1745341746747,5.88318519,1699.8,1699.3,0.35884115]
[1745341746949,5.88320604,1699.8,1699.3,0.05884115]
[1745341747650,6.28386618,1699.9,1699.3,0.7836]
[1745341747972,6.2840737,1699.9,1699.3,1.21979059]
[1745341748491,12.16714799,1699.9,1699.3,4.21979059]
[1745341748787,6.28412338,1699.9,1699.3,1.21979059]
[1745341749214,6.28412338,1699.9,1699.0,0.7836]
[1745341749215,5.88339118,1699.7,1699.0,0.7836]
[1745341749354,6.265,1699.6,1699.0,1.2177437]
[1745341749556,12.14875892,1699.6,1699.0,4.2177437]
[1745341749778,5.88416492,1699.5,1699.0,1.2177437]
[1745341749960,12.14893894,1699.6,1699.0,1.2177437]
[1745341750161,12.14874985,1699.6,1699.0,4.63951807]
[1745341750364,6.265,1699.6,1699.0,1.2177437]
[1745341750579,11.76938718,1699.4,1699.0,0.7836]
[1745341750866,5.88500848,1699.3,1699.0,0.7836]
[1745341751098,0.7987,1699.3,1698.7,0.8186]
[1745341751298,5.88630836,1698.9,1698.5,0.8186]
[1745341751485,5.88720122,1698.6,1698.5,0.8186]
[1745341751689,5.88766652,1698.5,1698.2,0.8186]
[1745341751893,5.88766652,1698.5,1698.2,1.26715931]
[1745341752206,5.88772397,1698.5,1698.2,0.8186]
[1745341752397,5.88811521,1698.4,1697.8,0.8186]
[1745341752703,5.88770115,1698.5,1697.9,0.05888868]
[1745341752873,5.88805851,1698.4,1697.8,4.78948609]
[1745341753074,5.88778032,1698.5,1697.8,4.78948609]
[1745341753268,5.88778032,1698.5,1697.8,10.67930402]
[1745341753601,5.88740929,1698.6,1698.0,3.8186]
[1745341753798,5.88740929,1698.6,1698.1,0.05888348]
[1745341754003,11.77420363,1698.7,1698.0,10.68454545]
[1745341754167,11.99273638,1698.8,1698.2,3.0]
[1745341754366,11.99273638,1698.8,1698.1,3.0]
[1745341754567,11.99273638,1698.8,1698.2,0.05887621]
[1745341754762,13.30973293,1698.8,1698.2,0.95365431]
[1745341755001,7.42299655,1698.8,1698.2,0.95365431]
[1745341755202,5.88749643,1698.6,1698.0,4.79529462]
[1745341755507,5.8873889,1698.6,1698.0,4.79529462]
[1745341755670,5.88771989,1698.5,1698.0,4.79529462]
[1745341756197,7.42299655,1698.8,1698.1,0.05888245]
[1745341756398,13.309697,1698.8,1698.0,10.68425725]
[1745341756603,5.88698245,1698.7,1698.1,1.06842573]
[1745341756771,5.35918245,1698.7,1698.1,1.12730367]
[1745341756967,6.106,1698.8,1698.2,6.70715587]
[1745341757166,5.8566,1698.8,1698.3,3.0]
[1745341757388,11.74314123,1698.8,1698.3,0.43846397]
[1745341757574,11.74314123,1698.8,1698.3,0.4257064]
[1745341757909,5.88635596,1698.9,1698.3,0.4257064]
[1745341758119,5.88591647,1699.0,1698.4,3.87747241]
[1745341758324,5.88591647,1699.0,1698.4,9.92747241]
[1745341758613,5.88686426,1698.7,1698.4,6.8686]
[1745341758771,5.88670002,1698.8,1698.4,6.8686]
[1745341758970,7.28330446,1698.8,1698.4,0.8186]
[1745341759309,5.88754783,1698.5,1697.8,0.8186]
[1745341759472,5.8892815,1698.0,1696.8,0.8186]
[1745341759679,5.8892815,1698.0,1696.7,12.80114143]
[1745341759680,5.89063533,1697.7,1697.1,0.8186]
[1745341759900,11.99588223,1697.9,1697.3,3.0]
[1745341760098,5.8910162,1697.5,1697.4,0.3]
[1745341760301,5.89196683,1697.3,1697.1,0.8186]
[1745341760501,5.8919336,1697.3,1697.1,0.8186]
[1745341760704,5.89191468,1697.3,1697.1,0.8186]
[1745341760874,5.89157572,1697.4,1697.1,0.8186]
[1745341761223,6.107,1697.5,1696.8,0.8186]
[1745341761528,7.23910301,1697.7,1696.8,0.8186]
[1745341761673,11.99837618,1697.4,1696.8,0.87753102]
[1745341761874,6.107,1697.4,1696.8,0.8186]
[1745341762190,6.107,1697.4,1696.8,3.8186]
[1745341762404,5.89050037,1697.7,1697.0,3.0]
[1745341762575,31.4089013,1697.9,1697.2,5.89203352]
[1745341762769,31.4089013,1697.9,1697.1,4.1186]
[1745341762770,25.519,1697.9,1697.1,4.1186]
[1745341762972,25.519,1697.9,1697.5,3.0]
[1745341763280,19.412,1697.9,1697.6,0.8186]
[1745341763780,6.108,1698.0,1697.6,0.8186]
[1745341763981,5.8896748,1697.9,1697.6,0.8186]
[1745341764181,12.60826764,1698.0,1697.6,0.8186]
[1745341764486,5.8901784,1697.8,1697.6,0.8186]
[1745341764799,5.88972378,1697.9,1697.6,0.8186]
[1745341765201,6.108,1698.0,1697.6,0.8186]
[1745341767699,5.88916433,1698.1,1697.6,0.8186]
[1745341768002,6.109,1698.0,1697.6,0.8186]
[1745341768186,11.99837149,1698.0,1697.6,3.8186]
[1745341768386,11.99837149,1698.0,1697.6,4.80546]
[1745341769085,6.109,1698.0,1697.6,4.80546]
[1745341769678,5.88965975,1697.9,1697.6,4.80546]
[1745341769879,11.99846007,1698.0,1697.6,1.80546]
[1745341770075,0.8009,1697.5,1696.3,0.30182235]
[1745341770383,0.8009,1696.7,1695.9,1.08040978]
[1745341770603,5.89414122,1696.6,1696.0,0.05895048]
[1745341770908,3.55,1696.6,1695.4,0.773]
[1745341771203,5.89483612,1696.4,1695.4,0.773]
[1745341771514,5.8966123,1695.9,1695.5,0.05896906]
[1745341771804,12.00424926,1696.3,1695.5,0.05896906]
[1745341772105,12.00424926,1696.3,1695.4,3.773]
[1745341772106,5.89623611,1696.0,1695.4,3.773]
[1745341772305,5.89610291,1696.1,1695.4,9.67128153]
[1745341772475,5.89592453,1696.1,1695.5,0.96712815]
[1745341772676,5.89602049,1696.1,1695.5,0.96712815]
[1745341772906,5.89623632,1696.0,1695.4,0.773]
[1745341773305,6.109,1696.3,1695.4,9.67112916]
[1745341773517,5.89628848,1696.0,1695.4,3.773]
[1745341773806,12.00436149,1696.3,1695.6,8.89747683]
[1745341774005,5.89567092,1696.2,1695.7,0.83195901]
[1745341774227,5.89567092,1696.2,1695.7,1.21515491]
[1745341774509,5.89555937,1696.2,1695.7,1.21515491]
[1745341774915,6.466,1696.5,1695.7,1.21515491]
[1745341775085,6.466,1696.5,1695.8,3.0]
[1745341775086,5.89504611,1696.4,1695.8,3.0]
[1745341775415,5.89504611,1696.4,1695.9,0.3]
[1745341775775,11.7901701,1696.4,1695.9,0.3]
[1745341775970,5.89504611,1696.4,1695.9,0.3]
[1745341776388,5.89466856,1696.5,1695.9,0.3]
[1745341776588,5.89488674,1696.4,1695.8,9.3278447]
[1745341776790,5.89488674,1696.4,1695.8,3.0]
[1745341777191,5.89534236,1696.3,1695.8,3.0]
[1745341777515,5.89536442,1696.3,1695.8,3.0]
[1745341778210,5.89571487,1696.2,1695.9,0.05895392]
[1745341778789,5.89502243,1696.4,1695.9,0.05895392]
[1745341779015,5.89502243,1696.4,1695.9,0.36484931]
[1745341779388,5.895552,1696.2,1695.9,0.36484931]
[1745341779714,5.89540418,1696.3,1695.9,0.05895392]
[1745341779890,5.89540418,1696.3,1695.8,0.05895639]
[1745341780217,5.89540418,1696.3,1695.8,3.05895639]
[1745341780796,12.00838907,1696.6,1695.9,0.7796]
[1745341780996,12.00838907,1696.6,1696.0,3.05894881]
[1745341781329,6.114,1696.6,1696.1,0.30589488]
[1745341781636,0.7877,1697.0,1696.3,0.7796]
[1745341781805,5.89467728,1696.5,1696.3,0.7796]
[1745341782233,11.78947465,1696.5,1696.3,0.7796]
[1745341782533,5.89467728,1696.5,1696.3,0.7796]
[1745341782729,5.89483612,1696.4,1696.3,0.7796]
[1745341782931,7.0740929,1696.4,1696.0,0.7796]
[1745341783141,18.54057932,1696.5,1696.0,0.7796]
[1745341783431,5.89493904,1696.4,1696.0,0.7796]
[1745341783636,5.89521534,1696.3,1696.0,0.7796]
[1745341783821,5.89454057,1696.5,1696.1,0.05895228]
[1745341783995,5.89462553,1696.5,1696.1,0.05894986]
[1745341784200,5.89494991,1696.4,1696.1,0.05894986]
[1745341784499,5.89449129,1696.5,1696.1,0.05894986]
[1745341784703,5.89449129,1696.5,1696.0,0.7796]
[1745341784903,5.89449129,1696.5,1696.0,1.46256]
[1745341785409,11.78924146,1696.5,1696.0,1.46256]
[1745341785615,5.89449129,1696.5,1696.0,1.46256]
[1745341785815,5.89494813,1696.4,1696.0,1.46256]
[1745341786218,5.89465866,1696.5,1696.1,0.05894885]
[1745341786529,5.89498937,1696.4,1696.1,0.05894885]
[1745341786742,5.89498937,1696.4,1696.0,0.7796]
[1745341787229,12.07780817,1696.7,1696.0,0.7796]
[1745341787529,5.89469315,1696.5,1696.0,0.7796]
[1745341788032,5.89452665,1696.5,1696.1,0.05894889]
[1745341788636,11.78926522,1696.5,1696.1,0.05894889]
[1745341788939,5.89462195,1696.5,1696.0,0.7796]
[1745341789139,5.89488309,1696.4,1696.0,0.7796]
[1745341789305,5.89487938,1696.4,1696.0,0.7796]
[1745341789833,5.89462195,1696.5,1696.0,0.7796]
[1745341790035,5.89388806,1696.7,1696.1,0.05894895]
[1745341790234,5.89431969,1696.6,1696.0,4.46256]
[1745341790434,5.8934527,1696.8,1696.0,4.46256]
[1745341790435,5.89503896,1696.4,1696.0,4.46256]
[1745341790836,5.89464593,1696.5,1696.0,4.46256]
[1745341791134,5.89464593,1696.5,1696.1,0.5881]
[1745341791317,5.89505788,1696.4,1696.1,0.5881]
[1745341791518,6.48417855,1696.5,1696.1,0.64705002]
[1745341791719,12.37891332,1696.5,1696.1,0.64705002]
[1745341791929,5.89438459,1696.6,1696.1,0.64705002]
[1745341792132,5.89449806,1696.5,1696.1,0.64705002]
[1745341792440,11.78927319,1696.5,1696.1,0.64705002]
[1745341792650,5.89553118,1696.2,1696.1,0.64705002]
[1745341792851,5.89553118,1696.2,1696.1,0.5881]
[1745341793314,5.89657409,1695.9,1695.8,1.3677]
[1745341793660,5.89610533,1696.1,1695.8,1.3677]
[1745341794411,5.89651133,1696.0,1695.8,1.3677]
[1745341795459,11.79216732,1696.1,1695.8,1.3677]
[1745341795657,5.89603745,1696.1,1695.8,1.3677]
[1745341795958,7.07483666,1696.2,1695.8,1.3677]
[1745341796247,5.89532675,1696.3,1695.9,0.05896252]
[1745341796448,5.89501911,1696.4,1695.9,12.00542887]
[1745341796449,6.185,1696.4,1695.9,12.00542887]
[1745341796649,12.07997776,1696.4,1695.9,6.05]
[1745341797367,12.07987865,1696.4,1696.0,0.05895289]
[1745341797654,12.08004264,1696.4,1696.0,0.05895289]
[1745341797849,12.08004264,1696.4,1695.9,6.05]
[1745341798053,5.89519894,1696.3,1696.0,0.05895313]
[1745341798257,5.89504264,1696.4,1696.0,0.05895313]
[1745341798645,5.89470603,1696.5,1696.0,0.05895313]
[1745341798843,5.89532812,1696.3,1696.0,0.05895313]
[1745341799153,5.89486576,1696.4,1696.0,0.05895313]
[1745341799563,5.89521751,1696.3,1696.0,0.05895313]
[1745341799718,5.8953325,1696.3,1696.0,0.05895313]
[1745341799924,5.89548151,1696.3,1695.9,6.05]
[1745341800234,5.89527717,1696.3,1695.9,7.09177]
[1745341800433,6.185,1696.6,1695.8,4.3677]
[1745341800747,5.89524728,1696.3,1695.9,0.05895818]
[1745341801350,11.7900615,1696.4,1695.9,0.05895818]
[1745341801652,5.89523873,1696.3,1695.9,0.05895818]
[1745341801871,5.89487794,1696.4,1695.8,4.3677]
[1745341802030,5.89487794,1696.4,1695.9,0.43677]
[1745341802221,5.89448865,1696.5,1695.8,4.3677]
[1745341802425,5.89593836,1696.1,1695.8,4.3677]
[1745341802623,5.89566077,1696.2,1695.8,4.42665437]
[1745341803154,5.8959025,1696.1,1695.8,4.42665437]
[1745341803360,5.89566077,1696.2,1695.8,4.42665437]
[1745341803559,6.48522685,1696.2,1695.8,4.3677]
[1745341805361,5.89609557,1696.1,1695.8,1.3677]
[1745341805530,5.89609557,1696.1,1695.7,0.64706546]
[1745341806352,12.67023219,1696.2,1695.7,0.64706546]
[1745341806548,5.8959847,1696.1,1695.7,0.64706546]
[1745341806731,13.64882843,1696.1,1695.7,0.64706546]
[1745341806931,1.85662169,1696.1,1695.7,0.64706546]
[1745341807166,5.8969218,1695.8,1695.3,1.83721899]
[1745341807373,5.89772915,1695.6,1695.3,0.7972]
[1745341807535,5.89820744,1695.5,1695.0,0.7972]
[1745341808036,5.89851596,1695.4,1695.0,1.3853]
[1745341808227,5.89851596,1695.4,1695.0,0.7972]
[1745341808228,5.89916003,1695.2,1695.0,0.7972]
[1745341808433,6.48871083,1695.3,1695.0,0.7972]
[1745341808873,0.5898516,1695.3,1695.0,0.7972]
[1745341809536,5.89916845,1695.2,1694.8,0.7972]
[1745341809744,0.58991685,1695.1,1694.8,0.7972]
[1745341810068,7.25455737,1695.3,1694.6,1.44430203]
[1745341810828,7.25459209,1695.3,1694.6,1.44430203]
[1745341811032,1.3557516,1695.3,1694.6,1.44430203]
[1745341811232,7.25453615,1695.3,1694.6,0.7972]
[1745341811466,1.3557516,1695.3,1694.6,0.7972]
[1745341811786,1.3557516,1695.3,1694.6,4.82605475]
[1745341811993,1.3557516,1695.3,1694.6,10.72701391]
[1745341812136,0.7637,1695.5,1694.8,8.90027091]
[1745341812337,5.958,1695.4,1694.9,0.8229]
[1745341812842,6.7733,1695.4,1694.9,0.8229]
[1745341813064,6.7733,1695.4,1694.7,3.0]
[1745341813261,0.67733,1695.3,1694.7,3.0]
[1745341813572,0.67733,1695.3,1694.7,0.05899473]
[1745341814065,0.67733,1695.3,1694.7,3.05899473]
[1745341814446,0.67733,1695.3,1694.7,0.05899473]
[1745341814659,6.57603778,1695.3,1694.7,0.05899473]
[1745341814847,0.65760378,1695.2,1694.7,0.05899473]
[1745341815048,0.67733,1695.3,1694.7,0.05899473]
[1745341817838,0.67733,1695.3,1694.6,1.22092827]
[1745341818058,0.67733,1695.3,1694.7,0.05900136]
[1745341819402,5.89900896,1695.2,1694.6,1.22092827]
[1745341819899,6.57619826,1695.3,1694.6,1.22092827]
[1745341820069,0.65761983,1695.2,1694.6,4.22092827]
[1745341820893,0.67733,1695.3,1694.6,4.22092827]
[1745341821406,6.5760617,1695.3,1694.6,4.22092827]
[1745341822569,5.89919957,1695.2,1694.6,4.22092827]
[1745341822770,5.89904526,1695.2,1694.6,4.22092827]
[1745341822983,6.5760617,1695.3,1694.6,4.22092827]
[1745341823180,0.65760617,1695.2,1694.6,4.22092827]
[1745341823778,0.67733,1695.3,1694.7,0.05900188]
[1745341824190,0.67733,1695.3,1694.8,6.00374893]
[1745341825883,0.67733,1695.3,1694.8,3.0]
[1745341826700,0.67733,1695.3,1694.9,0.8041]
[1745341829525,0.7766,1695.2,1694.6,0.45002827]
[1745341829685,5.90053623,1694.8,1694.2,1.3922]
[1745341829890,6.55005362,1694.7,1694.2,4.3922]
[1745341830219,7.32665362,1694.7,1694.2,0.8041]
[1745341830421,5.90156922,1694.5,1694.0,0.8041]
[1745341830620,5.9012661,1694.6,1694.0,0.8041]
[1745341830803,5.96,1694.5,1694.0,0.8041]
[1745341830980,5.96,1694.5,1694.0,4.24419736]
[1745341830981,6.556,1694.5,1694.0,4.24419736]
[1745341831413,5.96,1694.5,1694.0,4.30322028]
[1745341831787,5.90195385,1694.4,1694.1,0.24292739]
[1745341832409,5.90234445,1694.3,1694.1,0.24292739]
[1745341832609,5.90215973,1694.3,1694.1,0.24292739]
[1745341832985,5.96,1694.5,1693.7,0.86313353]
[1745341833179,5.90214247,1694.3,1694.2,0.24496477]
[1745341833485,5.90214247,1694.3,1693.7,0.8041]
[1745341833679,0.596,1694.4,1693.7,0.8631338]
[1745341833932,6.49791952,1694.4,1693.8,0.2485574]
[1745341834085,6.49790809,1694.4,1693.8,0.2485574]
[1745341834288,0.64979081,1694.3,1693.8,0.2485574]
[1745341834599,6.71122517,1694.2,1693.8,0.2485574]
[1745341834799,11.86487654,1694.1,1693.8,0.2485574]
[1745341834984,5.962,1694.1,1693.6,3.0]
[1745341835281,5.962,1694.1,1693.6,3.05903659]
[1745341835483,5.962,1694.1,1693.7,0.25404664]
[1745341835722,5.962,1694.1,1693.6,10.51902306]
[1745341836019,5.962,1694.1,1693.8,0.25334443]
[1745341836319,5.962,1694.1,1693.9,0.25264232]
[1745341836514,5.962,1694.1,1693.6,4.6145949]
[1745341836694,5.962,1694.1,1694.0,0.25194028]
[1745341836891,5.962,1694.1,1693.6,4.61459464]
[1745341837097,5.962,1694.1,1694.0,0.25194028]
[1745341837294,5.962,1694.1,1693.8,3.0]
[1745341837499,5.962,1694.1,1694.0,0.25208849]
[1745341837816,5.962,1694.1,1693.6,4.55555834]
[1745341837817,5.90331483,1694.0,1693.6,3.0]
[1745341838122,0.8086,1694.0,1693.3,0.44270541]
[1745341838326,5.90353621,1693.9,1693.2,6.75614893]
[1745341838622,5.90403533,1693.8,1693.2,0.7524]
[1745341838782,5.963,1693.7,1693.3,0.05905159]
[1745341838984,5.963,1693.7,1693.3,1.3020868]
[1745341839214,5.963,1693.7,1693.3,1.36113351]
[1745341839400,5.963,1693.7,1693.3,10.26656552]
[1745341839793,12.61538411,1694.0,1693.3,10.26656552]
[1745341839794,5.963,1693.8,1693.3,10.26656552]
[1745341840004,5.963,1693.8,1693.3,4.36113351]
[1745341840419,5.963,1693.8,1693.3,10.26673058]
[1745341840615,0.64979081,1694.3,1693.7,0.7524]
[1745341840616,7.36070135,1694.3,1693.7,0.7524]
[1745341840918,12.67391054,1694.3,1693.7,3.7524]
[1745341841802,12.67391054,1694.3,1693.7,4.20078037]
[1745341842412,18.57637222,1694.3,1693.7,4.20078037]
[1745341842728,5.963,1694.3,1693.8,6.00374893]
[1745341843023,7.14950028,1694.3,1693.8,6.00374893]
[1745341843332,13.05170839,1694.3,1693.8,6.00374893]
[1745341843627,7.14950028,1694.3,1693.8,6.00374893]
[1745341843829,13.05176983,1694.3,1693.8,6.00374893]
[1745341844126,7.14950028,1694.3,1693.8,6.00374893]
[1745341844297,7.14950028,1694.3,1693.7,1.20078037]
[1745341844298,6.61754355,1694.2,1693.7,4.20078037]
[1745341844494,5.963,1694.3,1693.7,10.10501331]
[1745341844718,5.963,1694.3,1693.7,10.10493722]
[1745341844936,5.963,1694.3,1693.8,6.00374893]
[1745341845227,5.963,1694.3,1693.9,8.90342356]
[1745341845523,5.963,1694.3,1694.0,0.8094]
[1745341845727,5.963,1694.3,1694.0,1.19034]
[1745341846736,5.963,1694.3,1694.1,0.05902648]
[1745341846905,5.963,1694.3,1694.1,3.05902648]
[1745341847106,5.963,1694.3,1694.1,3.0]
[1745341847505,5.963,1694.3,1694.2,0.2561065]